bitfinex-derivatives/quotes_BTCF0:USTF0_20250129
["timestamp","ask_amount","ask_price","bid_price","bid_amount"]
[1738138699444,0.09918344,102730.0,102720.0,0.64204421]
[1738138699646,0.09918344,102730.0,102720.0,0.68981942]
[1738138699854,0.08956128,102730.0,102720.0,0.68981942]
[1738138700054,0.08956128,102730.0,102720.0,0.73131603]
[1738138701348,0.08956128,102730.0,102720.0,0.82003603]
[1738138702061,0.08956128,102730.0,102720.0,1.18083603]
[1738138702460,0.08956128,102730.0,102720.0,1.19048697]
[1738138702865,0.00214613,102730.0,102720.0,1.19048697]
[1738138704062,0.00214613,102730.0,102720.0,1.14271176]
[1738138704364,0.00214613,102730.0,102720.0,1.18083603]
[1738138715364,0.28116868,102750.0,102740.0,0.194732]
[1738138715557,0.28116868,102750.0,102740.0,0.96410721]
[1738138716361,0.52365689,102750.0,102740.0,0.916332]
[1738138716564,0.56338723,102750.0,102740.0,0.916332]
[1738138716765,0.56538723,102750.0,102740.0,0.916332]
[1738138717359,0.57338723,102750.0,102740.0,0.917332]
[1738138718155,0.57338723,102750.0,102740.0,0.96510721]
[1738138720464,0.57338723,102750.0,102740.0,0.917332]
[1738138720866,0.57338723,102750.0,102740.0,0.96510721]
[1738138721066,0.4568337,102750.0,102740.0,0.96510721]
[1738138722869,0.4568337,102750.0,102740.0,0.917332]
[1738138727874,0.4568337,102750.0,102740.0,0.7226]
[1738138728970,0.57338723,102750.0,102740.0,0.7226]
[1738138729366,0.57338723,102750.0,102740.0,0.3618]
[1738138730276,0.57338723,102750.0,102740.0,0.001]
[1738138730476,0.57338723,102750.0,102740.0,0.3618]
[1738138732083,0.51512073,102750.0,102740.0,0.556531]
[1738138739183,0.56289594,102750.0,102740.0,0.001]
[1738138739377,0.51512073,102750.0,102740.0,0.001]
[1738138739682,2.01512073,102750.0,102740.0,0.001]
[1738138740370,0.51512073,102750.0,102740.0,0.001]
[1738138740771,2.01512073,102750.0,102740.0,0.001]
[1738138741167,0.51512073,102750.0,102740.0,0.001]
[1738138741772,0.51512073,102750.0,102740.0,0.3618]
[1738138742375,0.54426117,102750.0,102740.0,0.001]
[1738138745784,0.36941855,102750.0,102740.0,0.001]
[1738138745983,0.77799376,102750.0,102740.0,0.001]
[1738138746673,0.194731,102740.0,102730.0,0.36094613]
[1738138746872,0.29028142,102740.0,102730.0,0.36094613]
[1738138747081,1.79028142,102740.0,102730.0,0.36094613]
[1738138747284,1.79028142,102740.0,102730.0,0.00014613]
[1738138747483,1.79028142,102740.0,102730.0,0.36094613]
[1738138748078,1.79628142,102740.0,102730.0,0.36194613]
[1738138748286,0.29628142,102740.0,102730.0,0.36194613]
[1738138749070,0.24850621,102740.0,102730.0,0.36194613]
[1738138750281,0.24850621,102740.0,102730.0,0.55669613]
[1738138750478,0.24850621,102740.0,102730.0,0.58719613]
[1738138750679,0.51099915,102740.0,102730.0,0.58719613]
[1738138751977,0.46322394,102740.0,102730.0,0.63497134]
[1738138752480,0.51099915,102740.0,102730.0,0.63497134]
[1738138753287,0.51099915,102740.0,102730.0,0.58719613]
[1738138754783,0.45262513,102740.0,102730.0,0.58719613]
[1738138758194,0.36514174,102740.0,102730.0,0.58719613]
[1738138766698,0.41291695,102740.0,102730.0,0.39244613]
[1738138766903,0.41291695,102740.0,102730.0,0.00114613]
[1738138767401,0.55877436,102740.0,102730.0,0.00114613]
[1738138768101,2.05877436,102740.0,102730.0,0.00114613]
[1738138771200,1.97112404,102740.0,102730.0,0.00114613]
[1738138772400,0.47112404,102740.0,102730.0,0.00114613]
[1738138773005,0.42334883,102740.0,102730.0,0.00114613]
[1738138773502,0.42334883,102740.0,102730.0,0.04892134]
[1738138773703,0.42334883,102740.0,102730.0,0.36194613]
[1738138774105,0.37557362,102740.0,102730.0,0.63777134]
[1738138774298,0.37557362,102740.0,102730.0,0.70944244]
[1738138774606,0.37557362,102740.0,102730.0,0.74194244]
[1738138776904,0.42334883,102740.0,102730.0,0.74194244]
[1738138778608,0.45271579,102740.0,102730.0,0.74194244]
[1738138778803,0.45271579,102740.0,102730.0,0.66166723]
[1738138779993,0.40494058,102740.0,102730.0,0.70944244]
[1738138781314,0.45271579,102740.0,102730.0,0.70944244]
[1738138781808,0.40494058,102740.0,102730.0,0.70944244]
[1738138782412,0.45271579,102740.0,102730.0,0.70944244]
[1738138782910,0.40494058,102740.0,102730.0,0.70944244]
[1738138785216,0.21020958,102740.0,102730.0,0.74274244]
[1738138788513,0.09351839,102740.0,102730.0,0.74274244]
[1738138792309,0.006,102740.0,102730.0,0.74274244]
[1738138792509,0.006,102740.0,102730.0,1.10354244]
[1738138802630,0.006,102740.0,102730.0,0.38194244]
[1738138802825,0.006,102740.0,102730.0,1.10354244]
[1738138805929,0.09351839,102740.0,102730.0,1.15131765]
[1738138807123,0.09351839,102740.0,102730.0,1.10354244]
[1738138807318,0.09351839,102740.0,102730.0,1.15131765]
[1738138811932,0.3360256,102740.0,102730.0,1.00684244]
[1738138812120,0.233332,102740.0,102730.0,1.00684244]
[1738138812430,0.28110721,102740.0,102730.0,0.40351723]
[1738138812732,0.32888242,102740.0,102730.0,0.04271723]
[1738138812920,0.32888242,102740.0,102730.0,0.00114613]
[1738138813124,0.13415042,102740.0,102720.0,0.9881932]
[1738138813327,0.27262621,102730.0,102720.0,1.02977053]
[1738138813736,0.27262621,102730.0,102720.0,0.9881932]
[1738138814625,0.27462621,102730.0,102720.0,1.03596841]
[1738138814840,0.226851,102730.0,102720.0,1.23073841]
[1738138815036,0.48940618,102730.0,102720.0,0.60334521]
[1738138816333,0.52100618,102730.0,102720.0,0.60334521]
[1738138816539,0.52100618,102730.0,102720.0,0.55557]
[1738138817240,0.59381795,102730.0,102720.0,0.55557]
[1738138817439,0.5354344,102730.0,102720.0,0.55557]
[1738138818438,0.46262263,102730.0,102720.0,0.55557]
[1738138819039,0.5354344,102730.0,102720.0,0.55557]
[1738138819542,0.46262263,102730.0,102720.0,0.55557]
[1738138820643,0.47246971,102730.0,102720.0,0.55557]
[1738138822941,0.35577852,102730.0,102720.0,0.55557]
[1738138823128,0.16102752,102730.0,102720.0,0.62838177]
[1738138826731,0.07354708,102730.0,102720.0,0.62838177]
[1738138833647,0.07354708,102730.0,102720.0,0.98918177]
[1738138834946,0.04344708,102730.0,102720.0,0.98918177]
[1738138835650,0.04344708,102730.0,102720.0,1.03071859]
[1738138836640,0.002,102730.0,102720.0,1.08465194]
[1738138836836,0.002,102730.0,102720.0,1.11675194]
[1738138839052,0.002,102730.0,102720.0,1.12654326]
[1738138839638,0.002,102730.0,102720.0,1.11675194]
[1738138840443,0.002,102730.0,102720.0,1.06897938]
[1738138842153,0.002,102730.0,102720.0,1.11675194]
[1738138842454,0.002,102730.0,102720.0,1.06897938]
[1738138842842,0.196751,102730.0,102720.0,1.00567938]
[1738138843049,0.27572356,102730.0,102720.0,1.00567938]
[1738138843347,0.227951,102730.0,102720.0,1.00567938]
[1738138848948,0.31543144,102730.0,102720.0,1.00567938]
[1738138855757,0.31543144,102730.0,102720.0,0.28407938]
[1738138855964,0.31543144,102730.0,102720.0,1.00567938]
[1738138856564,0.43212263,102730.0,102720.0,1.00567938]
[1738138857363,0.43212263,102730.0,102720.0,0.28407938]
[1738138857553,0.43212263,102730.0,102720.0,1.00567938]
[1738138859763,0.23737163,102730.0,102720.0,1.00567938]
[1738138861975,0.23737163,102730.0,102720.0,1.03807938]
[1738138862476,0.23737163,102730.0,102720.0,1.08585194]
[1738138863177,0.23737163,102730.0,102720.0,1.03807938]
[1738138864074,0.20617163,102730.0,102720.0,1.08585194]
[1738138864282,0.20617163,102730.0,102720.0,1.11895194]
[1738138865480,28.88104806,102720.0,102710.0,1.36041052]
[1738138865674,28.88104806,102720.0,102710.0,1.40201584]
[1738138866779,28.88104806,102720.0,102710.0,1.49756096]
[1738138867380,28.88104806,102720.0,102710.0,1.49856096]
[1738138867580,28.88104806,102720.0,102710.0,1.49956096]
[1738138868682,28.88104806,102720.0,102710.0,1.64771772]
[1738138868982,25.90557178,102720.0,102710.0,1.71017601]
[1738138869176,25.04080228,102720.0,102710.0,2.09897601]
[1738138869678,25.04080228,102720.0,102710.0,2.10092324]
[1738138869877,25.04080228,102720.0,102710.0,1.47353004]
[1738138870079,24.96777757,102720.0,102710.0,1.55668082]
[1738138871384,24.96777757,102720.0,102710.0,1.25768082]
[1738138871573,24.73404533,102720.0,102710.0,1.25768082]
[1738138871980,24.73404533,102720.0,102710.0,2.0790727]
[1738138872180,24.73404533,102720.0,102710.0,2.0780727]
[1738138872485,24.73404533,102720.0,102710.0,2.4428727]
[1738138873188,24.73404533,102720.0,102710.0,2.65972192]
[1738138873588,24.73404533,102720.0,102710.0,2.35972192]
[1738138874083,23.86034375,102720.0,102710.0,2.91843192]
[1738138874387,21.83540011,102720.0,102710.0,2.91843192]
[1738138874687,21.70300024,102720.0,102710.0,2.91843192]
[1738138874985,21.70300024,102720.0,102710.0,2.93307192]
[1738138875581,21.70300024,102720.0,102710.0,2.51784313]
[1738138876689,21.66759248,102720.0,102710.0,2.51784313]
[1738138876989,0.00014613,102740.0,102730.0,0.194751]
[1738138877289,0.2364269,102760.0,102730.0,0.95990317]
[1738138877483,0.2364269,102760.0,102750.0,0.3608]
[1738138877684,0.2364269,102760.0,102750.0,0.40240532]
[1738138877884,0.4311209,102760.0,102750.0,0.40240532]
[1738138878085,0.2364269,102760.0,102750.0,0.54788402]
[1738138878287,0.04759784,102760.0,102750.0,1.20071588]
[1738138878484,0.04759784,102760.0,102750.0,1.36371247]
[1738138879192,0.04959784,102760.0,102750.0,1.36371247]
[1738138879791,0.03314613,102770.0,102750.0,1.36471247]
[1738138879995,0.03314613,102770.0,102760.0,0.43353935]
[1738138880195,0.03314613,102770.0,102760.0,0.50824467]
[1738138880501,0.03314613,102770.0,102760.0,0.80858858]
[1738138880688,0.03314613,102770.0,102760.0,0.90590271]
[1738138882098,0.00014613,102770.0,102760.0,0.97864206]
[1738138882898,0.00314613,102770.0,102760.0,0.97864206]
[1738138883308,0.00314613,102770.0,102760.0,0.98058834]
[1738138883991,0.291945,102790.0,102770.0,0.194665]
[1738138884199,0.291945,102790.0,102780.0,0.6035187]
[1738138884893,0.291945,102790.0,102780.0,0.5062787]
[1738138885092,0.291945,102790.0,102780.0,0.17001935]
[1738138885093,0.292945,102790.0,102780.0,0.17001935]
[1738138885395,0.194656,102780.0,102770.0,0.53096548]
[1738138887100,0.199656,102780.0,102770.0,0.53096548]
[1738138887500,0.200656,102780.0,102770.0,0.43368548]
[1738138887695,0.200656,102780.0,102770.0,0.36094613]
[1738138887894,0.200656,102780.0,102770.0,0.43368548]
[1738138894508,0.199656,102780.0,102770.0,0.43368548]
[1738138895502,0.196656,102780.0,102770.0,0.62836048]
[1738138896706,0.002,102780.0,102770.0,0.62836048]
[1738138898212,0.002,102780.0,102770.0,0.66864385]
[1738138898911,0.002,102780.0,102770.0,0.7413832]
[1738138899113,0.002,102780.0,102770.0,0.66864385]
[1738138904418,0.002,102780.0,102770.0,0.76594377]
[1738138911234,0.002,102780.0,102770.0,0.86206377]
[1738138914538,0.002,102780.0,102770.0,0.86306377]
[1738138914734,0.29194,102790.0,102770.0,0.86306377]
[1738138914938,0.29194,102790.0,102780.0,0.43353935]
[1738138915437,0.29194,102790.0,102780.0,0.47382272]
[1738138916636,0.29394,102790.0,102780.0,0.47382272]
[1738138919840,0.29394,102790.0,102780.0,0.66847972]
[1738138920637,0.65474,102790.0,102780.0,0.04028337]
[1738138920844,0.65474,102790.0,102780.0,0.13492337]
[1738138921840,0.65474,102790.0,102780.0,0.20766272]
[1738138922039,0.29394,102790.0,102780.0,0.56846272]
[1738138931350,0.29394,102790.0,102780.0,0.76195972]
[1738138934554,0.29394,102790.0,102780.0,0.78465273]
[1738138936741,0.26174,102790.0,102780.0,0.78465273]
[1738138936945,0.26174,102790.0,102780.0,0.81475273]
[1738138937159,0.0671,102790.0,102780.0,0.81475273]
[1738138939045,0.0347,102790.0,102780.0,0.81475273]
[1738138939448,0.0347,102790.0,102780.0,0.84605273]
[1738138940459,0.002,102790.0,102780.0,0.99105937]
[1738138940956,0.002,102790.0,102780.0,0.94334319]
[1738138941253,0.002,102790.0,102780.0,0.99105937]
[1738138941455,20.00014613,102800.0,102790.0,0.194638]
[1738138941653,20.00014613,102800.0,102790.0,0.71075373]
[1738138941847,20.00014613,102800.0,102790.0,0.81270994]
[1738138942045,20.00014613,102800.0,102790.0,0.9100004]
[1738138942656,20.00014613,102800.0,102790.0,0.8872447]
[1738138943163,20.00114613,102800.0,102790.0,0.8872447]
[1738138943961,20.00014613,102800.0,102790.0,0.8872447]
[1738138944160,20.00014613,102800.0,102790.0,0.5264447]
[1738138944352,20.00514613,102800.0,102790.0,0.8872447]
[1738138945560,20.00214613,102800.0,102790.0,0.8872447]
[1738138946965,20.00214613,102800.0,102790.0,0.8676447]
[1738138949364,20.00214613,102800.0,102790.0,0.5068447]
[1738138949665,20.00214613,102800.0,102790.0,0.85916849]
[1738138953266,20.00214613,102800.0,102790.0,0.04028337]
[1738138953267,20.19676513,102800.0,102790.0,0.04028337]
[1738138953469,20.55756513,102800.0,102790.0,0.04028337]
[1738138953763,20.19676513,102800.0,102790.0,0.04028337]
[1738138953964,20.19676513,102800.0,102790.0,0.11296003]
[1738138954166,20.19676513,102800.0,102790.0,0.47376003]
[1738138954359,20.00214613,102800.0,102790.0,0.66839803]
[1738138960568,20.00214613,102800.0,102790.0,0.76567902]
[1738138962575,20.00214613,102800.0,102790.0,0.78839394]
[1738138966970,20.00214613,102800.0,102790.0,0.74069815]
[1738138971881,20.00214613,102800.0,102790.0,0.78839394]
[1738138972083,20.00214613,102800.0,102790.0,0.74069815]
[1738138972784,20.00214613,102800.0,102790.0,0.64341716]
[1738138973471,20.00014613,102800.0,102790.0,0.64441716]
[1738138973676,20.00014613,102800.0,102790.0,0.64541716]
[1738138978588,20.19476513,102800.0,102790.0,0.45077916]
[1738138978775,20.19476513,102800.0,102790.0,0.54461916]
[1738138981577,20.20432288,102800.0,102790.0,0.54461916]
[1738138982588,20.20432288,102800.0,102790.0,0.45077916]
[1738138984988,20.19476513,102800.0,102790.0,0.45077916]
[1738138990511,20.19476513,102800.0,102790.0,0.08997916]
[1738138990711,0.194657,102780.0,102770.0,1.23166057]
[1738138991014,0.555457,102780.0,102770.0,0.95872892]
[1738138992303,0.194657,102780.0,102770.0,1.31952892]
[1738138992504,0.195657,102780.0,102770.0,1.52420492]
[1738138992707,0.195657,102780.0,102770.0,0.65349048]
[1738138998418,0.195657,102780.0,102770.0,0.45881448]
[1738138998605,0.195657,102780.0,102770.0,0.41864192]
[1738138998810,0.24335279,102780.0,102770.0,0.01014613]
[1738138999010,0.60415279,102780.0,102770.0,0.01014613]
[1738138999215,0.194676,102770.0,102760.0,0.41044207]
[1738138999409,0.256576,102770.0,102760.0,0.45051003]
[1738138999705,0.256576,102770.0,102760.0,0.41044207]
[1738139000617,0.257576,102770.0,102760.0,0.41944207]
[1738139001424,0.66607179,102770.0,102760.0,0.01094628]
[1738139001923,0.66607179,102770.0,102760.0,0.01394628]
[1738139002318,0.69777179,102770.0,102760.0,0.01394628]
[1738139005313,0.69677179,102770.0,102760.0,0.00494628]
[1738139005508,0.69677179,102770.0,102760.0,0.00794628]
[1738139005715,0.70663282,102770.0,102760.0,0.00694628]
[1738139006013,0.70663282,102770.0,102760.0,0.05464207]
[1738139006423,0.70663282,102770.0,102760.0,0.05364207]
[1738139008721,0.70663282,102770.0,102760.0,0.00594628]
[1738139009025,0.65893703,102770.0,102760.0,0.05364207]
[1738139009226,0.29813703,102770.0,102760.0,0.05364207]
[1738139010628,0.34583282,102770.0,102760.0,0.00594628]
[1738139010933,0.34583282,102770.0,102760.0,0.05364207]
[1738139011619,0.29813703,102770.0,102760.0,0.05364207]
[1738139015720,0.34583282,102770.0,102760.0,0.00594628]
[1738139016527,0.70663282,102770.0,102760.0,0.00594628]
[1738139022133,0.91061029,102770.0,102760.0,0.00594628]
[1738139022521,0.95830608,102770.0,102760.0,0.00294628]
[1738139022732,0.194695,102760.0,102750.0,0.00014613]
[1738139023029,0.65088658,102760.0,102750.0,0.00014613]
[1738139024333,0.60319079,102760.0,102750.0,0.00114613]
[1738139025036,0.60319079,102760.0,102750.0,0.00414613]
[1738139025433,0.65088658,102760.0,102750.0,0.00414613]
[1738139025942,0.60319079,102760.0,102750.0,0.00414613]
[1738139026238,0.80716826,102760.0,102750.0,0.00414613]
[1738139027041,0.80716826,102760.0,102750.0,0.05184192]
[1738139027739,0.80716826,102760.0,102750.0,0.00414613]
[1738139027937,0.44636826,102760.0,102750.0,0.00414613]
[1738139028139,0.39867247,102760.0,102750.0,0.05184192]
[1738139028642,0.39867247,102760.0,102750.0,0.41264192]
[1738139028835,0.39867247,102760.0,102750.0,0.45864192]
[1738139029341,0.39867247,102760.0,102750.0,0.49876056]
[1738139030441,0.194695,102760.0,102750.0,0.49876056]
[1738139030643,0.194695,102760.0,102750.0,0.52382166]
[1738139033541,0.4402195,102770.0,102750.0,0.52382166]
[1738139033744,0.4402195,102770.0,102760.0,0.46725689]
[1738139034042,0.4402195,102770.0,102760.0,0.50737553]
[1738139034943,0.4402195,102770.0,102760.0,0.43461864]
[1738139036135,0.32351666,102770.0,102760.0,0.43461864]
[1738139036554,0.32351666,102770.0,102760.0,0.43561864]
[1738139037236,0.32351666,102770.0,102760.0,0.43461864]
[1738139037631,0.32351666,102770.0,102760.0,0.50737553]
[1738139037842,0.32351666,102770.0,102760.0,0.43461864]
[1738139039034,0.32351666,102770.0,102760.0,0.50737553]
[1738139039839,0.31365563,102770.0,102760.0,0.50737553]
[1738139040244,0.08727463,102770.0,102760.0,0.70206953]
[1738139040447,0.08727463,102770.0,102760.0,0.74986953]
[1738139041543,0.08727463,102770.0,102760.0,0.85889138]
[1738139041731,0.04304498,102770.0,102760.0,0.95620077]
[1738139041938,0.11684897,102780.0,102770.0,0.194675]
[1738139042147,0.11684897,102780.0,102770.0,0.78800742]
[1738139042342,0.11684897,102780.0,102770.0,0.89150605]
[1738139042646,0.11684897,102780.0,102770.0,0.98881544]
[1738139043235,0.00114613,102780.0,102770.0,0.98881544]
[1738139043438,0.00414613,102780.0,102770.0,0.98881544]
[1738139044239,0.00414613,102780.0,102770.0,1.28881544]
[1738139044543,0.26265063,102790.0,102780.0,0.194656]
[1738139044732,0.26265063,102790.0,102780.0,0.78888842]
[1738139044937,0.26265063,102790.0,102780.0,0.89316429]
[1738139045137,0.26265063,102790.0,102780.0,0.99046421]
[1738139046546,0.26465063,102790.0,102780.0,0.99046421]
[1738139047346,0.002,102790.0,102780.0,0.99046421]
[1738139047649,0.003,102790.0,102780.0,1.02286421]
[1738139049943,0.003,102790.0,102780.0,1.11874421]
[1738139050255,0.003,102790.0,102780.0,1.12865767]
[1738139054756,0.003,102790.0,102780.0,1.14325767]
[1738139058354,20.00014613,102800.0,102780.0,0.94860167]
[1738139058556,20.00014613,102800.0,102790.0,0.70095078]
[1738139058747,20.00014613,102800.0,102790.0,0.74845078]
[1738139058950,20.00014613,102800.0,102790.0,0.85132377]
[1738139059149,20.00014613,102800.0,102790.0,0.91574321]
[1738139059656,20.00714613,102800.0,102790.0,0.91674321]
[1738139060160,20.00014613,102800.0,102790.0,0.91574321]
[1738139060350,20.00014613,102800.0,102790.0,0.91674321]
[1738139062649,20.00014613,102800.0,102790.0,0.9895001]
[1738139063048,19.77576318,102800.0,102790.0,0.9895001]
[1738139063652,19.77576318,102800.0,102790.0,0.99144581]
[1738139063952,19.70279872,102800.0,102790.0,0.99144581]
[1738139064153,0.00014613,102800.0,102790.0,0.99144581]
[1738139064354,0.0453,102820.0,102810.0,0.194599]
[1738139064561,0.0471,102830.0,102810.0,0.90700439]
[1738139064769,0.0471,102830.0,102820.0,0.72445689]
[1738139066967,0.0471,102830.0,102820.0,0.72545689]
[1738139067666,0.079,102830.0,102820.0,0.76469491]
[1738139068067,0.079,102830.0,102820.0,0.97426827]
[1738139068368,0.079,102830.0,102820.0,1.19296827]
[1738139069267,0.0471,102830.0,102820.0,0.97426827]
[1738139074169,0.0471,102830.0,102820.0,1.33506827]
[1738139074867,0.0471,102830.0,102820.0,1.34966827]
[1738139075859,0.0821,102830.0,102820.0,1.34974827]
[1738139076967,0.0821,102830.0,102820.0,1.34958827]
[1738139078165,0.0821,102830.0,102820.0,1.25334827]
[1738139078372,0.0821,102830.0,102820.0,0.76449491]
[1738139080168,0.0821,102830.0,102820.0,1.12529491]
[1738139089172,0.0821,102830.0,102820.0,1.02917491]
[1738139089378,0.0821,102830.0,102820.0,1.12449491]
[1738139091073,0.0821,102830.0,102820.0,1.12421491]
[1738139092576,0.0821,102830.0,102820.0,1.14656114]
[1738139092978,0.0821,102830.0,102820.0,0.78576114]
[1738139098184,0.0821,102830.0,102820.0,0.78500114]
[1738139098381,0.04664613,102840.0,102830.0,0.194561]
[1738139098683,0.04664613,102840.0,102830.0,0.64227058]
[1738139100276,0.04764613,102840.0,102830.0,0.64227058]
[1738139100878,0.04964613,102840.0,102830.0,0.64227058]
[1738139102391,0.04964613,102840.0,102830.0,0.73671058]
[1738139103684,0.00314613,102840.0,102830.0,0.88162529]
[1738139104678,0.00314613,102840.0,102830.0,0.85889965]
[1738139104976,0.00314613,102840.0,102830.0,0.86838067]
[1738139107187,0.00314613,102840.0,102830.0,0.77113752]
[1738139107489,0.04544613,102840.0,102830.0,0.77113752]
[1738139112283,0.04544613,102840.0,102830.0,0.77117752]
[1738139117590,0.04544613,102840.0,102830.0,0.41037752]
[1738139117789,0.04544613,102840.0,102830.0,0.77117752]
[1738139120293,0.00314613,102840.0,102830.0,0.77117752]
[1738139126802,0.00314613,102840.0,102830.0,0.74622141]
[1738139129203,0.00314613,102840.0,102830.0,0.79388278]
[1738139130498,0.00314613,102840.0,102830.0,0.89112593]
[1738139132596,0.00314613,102840.0,102830.0,0.53032593]
[1738139132896,0.00314613,102840.0,102830.0,1.25192593]
[1738139137703,0.00314613,102840.0,102830.0,1.35769132]
[1738139143907,0.00114613,102840.0,102830.0,1.35769132]
[1738139144100,0.00114613,102840.0,102830.0,1.35869132]
[1738139144304,0.16260284,102860.0,102850.0,0.194524]
[1738139144604,0.20650284,102860.0,102850.0,1.05068476]
[1738139145199,0.20650284,102860.0,102850.0,1.00302339]
[1738139145403,0.20850284,102860.0,102850.0,1.00302339]
[1738139147114,0.21350284,102860.0,102850.0,1.00402339]
[1738139147707,0.0968,102860.0,102850.0,1.00402339]
[1738139148120,0.0968,102860.0,102850.0,1.05168476]
[1738139148614,0.0968,102860.0,102850.0,1.06142347]
[1738139148811,0.0968,102860.0,102850.0,1.15864771]
[1738139149911,0.0968,102860.0,102850.0,1.11098634]
[1738139150313,0.0968,102860.0,102850.0,1.0137621]
[1738139153408,0.0968,102860.0,102850.0,0.8192381]
[1738139154417,0.0968,102860.0,102850.0,0.9117181]
[1738139155713,0.291305,102860.0,102850.0,0.9117181]
[1738139155920,0.291305,102860.0,102850.0,0.8192381]
[1738139156122,0.291305,102860.0,102850.0,0.9115581]
[1738139158311,0.30097145,102860.0,102850.0,0.9115581]
[1738139158622,0.30097145,102860.0,102850.0,0.9112781]
[1738139159221,0.30097145,102860.0,102850.0,0.1896781]
[1738139159415,0.30097145,102860.0,102850.0,0.5504781]
[1738139160521,0.291305,102860.0,102850.0,0.5504781]
[1738139160822,0.0968,102860.0,102850.0,0.7450021]
[1738139161826,0.0968,102860.0,102850.0,0.5504781]
[1738139163318,0.0968,102860.0,102850.0,0.79266347]
[1738139164314,0.0918,102860.0,102850.0,1.15246347]
[1738139164515,0.0928,102860.0,102850.0,1.15246347]
[1738139166525,0.0928,102860.0,102850.0,1.1048021]
[1738139166819,0.0928,102860.0,102850.0,0.9102781]
[1738139168323,0.0928,102860.0,102850.0,0.91013625]
[1738139169527,0.0928,102860.0,102850.0,1.10466025]
[1738139170317,0.0469,102860.0,102850.0,1.10466025]
[1738139170518,0.0459,102860.0,102850.0,1.15232162]
[1738139171521,0.0439,102860.0,102850.0,1.15332162]
[1738139172121,0.11999315,102870.0,102860.0,0.194505]
[1738139172318,0.16389315,102870.0,102860.0,0.65062774]
[1738139172519,0.16389315,102870.0,102860.0,0.68972391]
[1738139173130,0.16589315,102870.0,102860.0,0.68972391]
[1738139173619,0.16689315,102870.0,102860.0,0.68972391]
[1738139174429,0.07954613,102870.0,102860.0,0.68972391]
[1738139175227,0.00014613,102870.0,102860.0,0.69072391]
[1738139175421,0.00014613,102870.0,102860.0,0.73462391]
[1738139187831,0.00014613,102870.0,102860.0,0.78228528]
[1738139188032,0.00014613,102870.0,102860.0,0.98949719]
[1738139188229,0.00014613,102870.0,102860.0,1.06639719]
[1738139190435,0.00014613,102870.0,102860.0,1.06839719]
[1738139190735,0.00014613,102870.0,102860.0,1.07139719]
[1738139191737,0.00014613,102870.0,102860.0,1.43219719]
[1738139194244,0.0332,102890.0,102860.0,1.23769219]
[1738139194448,0.0332,102890.0,102880.0,0.45612274]
[1738139194634,0.0332,102890.0,102880.0,0.58817891]
[1738139196046,0.0362,102890.0,102880.0,0.78264691]
[1738139196242,0.0372,102890.0,102880.0,0.78264691]
[1738139198039,0.0372,102890.0,102880.0,0.79224998]
[1738139206151,0.0372,102890.0,102880.0,0.43144998]
[1738139206455,0.0372,102890.0,102880.0,0.79224998]
[1738139212860,0.0372,102890.0,102880.0,0.50482198]
[1738139213158,0.0372,102890.0,102880.0,0.54768061]
[1738139214155,0.08486137,102890.0,102880.0,0.13921924]
[1738139214460,0.27931037,102890.0,102880.0,0.17727754]
[1738139214956,0.231649,102890.0,102880.0,0.17727754]
[1738139220365,0.27931037,102890.0,102880.0,0.17727754]
[1738139220562,0.27931037,102890.0,102870.0,0.37072967]
[1738139220563,0.53300839,102890.0,102870.0,0.37072967]
[1738139220761,0.54442274,102880.0,102850.0,0.49161215]
[1738139220958,0.65062774,102860.0,102850.0,0.04087962]
[1738139221159,0.194505,102860.0,102850.0,0.08854099]
[1738139221359,0.282805,102860.0,102850.0,0.44934099]
[1738139221766,0.282805,102860.0,102850.0,0.54286099]
[1738139221962,0.00014613,102870.0,102850.0,0.59052236]
[1738139222169,0.00014613,102870.0,102860.0,0.65062774]
[1738139222362,0.00014613,102870.0,102860.0,0.78522736]
[1738139222769,0.00014613,102870.0,102860.0,0.83132736]
[1738139223066,0.00014613,102870.0,102860.0,0.87898873]
[1738139223268,0.00014613,102870.0,102860.0,0.97621297]
[1738139223461,0.001,102880.0,102870.0,0.194486]
[1738139223770,0.08734702,102890.0,102880.0,0.194468]
[1738139223963,0.26265063,102890.0,102880.0,0.65059074]
[1738139224164,0.26265063,102890.0,102880.0,0.69147036]
[1738139224968,0.26365063,102890.0,102880.0,0.69147036]
[1738139225267,0.26365063,102890.0,102880.0,0.49700236]
[1738139226853,0.001,102890.0,102880.0,0.49700236]
[1738139227059,0.004,102890.0,102880.0,0.49700236]
[1738139229664,0.004,102890.0,102880.0,0.50650063]
[1738139231872,0.004,102890.0,102880.0,0.60066063]
[1738139235270,0.004,102890.0,102880.0,0.79512863]
[1738139245282,0.004,102890.0,102880.0,0.70096863]
[1738139245481,0.004,102890.0,102880.0,0.79388863]
[1738139246780,0.004,102890.0,102880.0,0.50650063]
[1738139247083,0.0384,102890.0,102880.0,0.59978063]
[1738139247487,0.0384,102890.0,102880.0,0.79424763]
[1738139253981,0.0384,102890.0,102880.0,0.79388763]
[1738139256189,0.12569991,102890.0,102880.0,0.79388763]
[1738139258289,0.12569991,102890.0,102880.0,0.43308763]
[1738139258485,0.12569991,102890.0,102880.0,0.79388763]
[1738139258790,0.12569991,102890.0,102880.0,0.50650063]
[1738139258982,0.12569991,102890.0,102880.0,0.59922063]
[1738139259183,0.16829991,102890.0,102880.0,0.55155926]
[1738139259379,0.16829991,102890.0,102880.0,0.59922063]
[1738139259590,0.16829991,102890.0,102880.0,0.55155926]
[1738139260297,0.16829991,102890.0,102880.0,0.59922063]
[1738139264511,0.16829991,102890.0,102880.0,0.50650063]
[1738139264701,0.16829991,102890.0,102880.0,0.59894063]
[1738139266095,0.16829991,102890.0,102880.0,0.79340763]
[1738139267708,0.16729991,102890.0,102880.0,0.79340763]
[1738139269518,0.16429991,102890.0,102880.0,0.79340763]
[1738139269711,0.16429991,102890.0,102880.0,0.79440763]
[1738139272106,0.12169991,102890.0,102880.0,0.79440763]
[1738139275510,0.08729991,102890.0,102880.0,0.79440763]
[1738139278017,0.34764888,102900.0,102880.0,0.79440763]
[1738139278218,0.34764888,102900.0,102890.0,0.40846137]
[1738139278519,0.34764888,102900.0,102890.0,0.44934099]
[1738139280021,0.34864888,102900.0,102890.0,0.44934099]
[1738139280317,0.35164888,102900.0,102890.0,0.44934099]
[1738139281812,0.35064888,102900.0,102890.0,0.44934099]
[1738139282218,0.34764888,102900.0,102890.0,0.44934099]
[1738139282411,0.34764888,102900.0,102890.0,0.45034099]
[1738139285419,0.54207788,102900.0,102890.0,0.45034099]
[1738139287523,0.58973925,102900.0,102890.0,0.45034099]
[1738139287923,0.54207788,102900.0,102890.0,0.45034099]
[1738139291127,0.45477797,102900.0,102890.0,0.45034099]
[1738139292622,0.45477797,102900.0,102890.0,0.49800236]
[1738139292823,0.45477797,102900.0,102890.0,0.45034099]
[1738139298028,0.42552019,102900.0,102890.0,0.45034099]